bitfinex-derivatives/quotes_BNBF0:USTF0_20250302
["timestamp","ask_amount","ask_price","bid_price","bid_amount"]
[1740927998340,1.57879498,603.46,602.52,5.70693918]
[1740927998541,1.57879498,603.45,602.52,5.70693918]
[1740927998745,1.57879498,603.44,602.52,5.70693918]
[1740927998944,1.57879498,603.43,602.52,5.70693918]
[1740927999145,1.57879498,603.42,602.52,5.70693918]
[1740927999443,1.1116567,603.41,602.52,5.70693918]
[1740927999650,3.54255195,603.41,602.52,5.70693918]
[1740927999841,0.85210027,603.4,602.52,5.70693918]
[1740928000247,1.1116567,603.39,602.52,5.70693918]
[1740928000643,1.1116567,603.38,602.52,5.70693918]
[1740928001042,1.1116567,603.37,602.52,5.70693918]
[1740928001444,2.43089525,603.46,602.52,5.70693918]
[1740928001445,1.1116567,603.36,602.52,5.70693918]
[1740928001749,1.1116567,603.35,602.52,5.70693918]
[1740928002250,5.27392395,603.42,602.52,5.70693918]
[1740928002453,2.43089525,603.41,602.52,5.70693918]
[1740928002654,3.54255195,603.41,602.52,5.70693918]
[1740928002954,1.96375697,603.4,602.52,5.70693918]
[1740928003551,2.69045168,603.39,602.52,5.70693918]
[1740928003753,2.43089525,603.38,602.52,5.70693918]
[1740928004155,1.1116567,603.37,602.52,5.70693918]
[1740928004355,1.57879498,603.36,602.52,5.70693918]
[1740928004653,3.54255195,603.36,602.52,5.70693918]
[1740928004855,3.54255195,603.35,602.52,5.70693918]
[1740928005156,2.43089525,603.34,602.52,5.70693918]
[1740928005352,3.69524383,603.34,602.52,5.70693918]
[1740928005557,2.43089525,603.33,602.52,5.70693918]
[1740928005857,1.11453607,603.32,602.52,5.70693918]
[1740928006051,1.96732383,603.32,602.52,5.70693918]
[1740928006454,1.11453607,603.32,602.52,5.70693918]
[1740928006658,1.11453607,603.31,602.52,5.70693918]
[1740928007261,1.73125715,603.52,602.52,5.70693918]
[1740928007461,3.79673859,604.6,602.52,5.70693918]
[1740928007658,1.73115667,603.66,602.52,5.70693918]
[1740928007862,2.43235457,603.65,602.52,5.70693918]
[1740928008055,0.33080816,604.58,602.52,5.70693918]
[1740928008056,2.43235457,603.64,602.52,5.70693918]
[1740928008261,2.43235457,603.63,602.52,5.70693918]
[1740928008457,2.43235457,603.62,602.52,5.70693918]
[1740928008662,1.5797079,603.61,602.52,5.70693918]
[1740928008864,1.5797079,603.6,602.52,5.70693918]
[1740928009066,1.5797079,603.59,602.52,5.70693918]
[1740928009265,1.5797079,603.58,602.52,5.70693918]
[1740928009561,2.47779346,603.59,602.52,5.70693918]
[1740928009864,1.11453607,603.57,602.52,5.70693918]
[1740928010059,1.57860833,603.56,602.52,5.70693918]
[1740928010259,4.90843766,603.56,602.52,5.70693918]
[1740928010461,3.54518027,603.55,602.52,5.70693918]
[1740928010656,2.4306442,603.54,602.52,5.70693918]
[1740928010863,3.54518027,603.54,602.52,5.70693918]
[1740928011165,2.4306442,603.53,602.52,5.70693918]
[1740928011366,1.96657194,603.53,602.52,5.70693918]
[1740928011664,1.11453607,603.53,602.52,5.70693918]
[1740928011866,2.42974934,603.64,602.52,5.70693918]
[1740928012066,1.57771347,603.63,602.52,5.70693918]
[1740928012261,2.21484756,603.64,602.52,5.70693918]
[1740928012262,2.69224954,603.62,602.52,5.70693918]
[1740928012466,2.42974934,603.61,602.52,5.70693918]
[1740928012867,1.11453607,603.6,602.52,5.70693918]
[1740928013067,1.96657194,603.6,602.52,5.70693918]
[1740928013267,1.11453607,603.59,602.52,5.70693918]
[1740928013869,1.11453607,603.58,602.52,5.70693918]
[1740928014370,2.6913488,603.62,602.52,5.70693918]
[1740928014566,1.11453607,603.62,602.52,5.70693918]
[1740928014965,2.4265239,603.74,602.52,5.70693918]
[1740928015366,1.57597188,603.74,602.52,5.70693918]
[1740928015570,1.11453607,603.73,602.52,5.70693918]
[1740928015869,2.69050795,603.73,602.52,5.70693918]
[1740928016064,1.57597188,603.72,602.52,5.70693918]
[1740928016267,2.69050795,603.78,602.52,5.70693918]
[1740928016469,2.42591049,603.77,602.52,5.70693918]
[1740928016670,0.84993861,603.77,602.52,5.70693918]
[1740928017070,1.11453607,603.76,602.52,5.70693918]
[1740928017473,2.69050795,603.78,602.52,5.70693918]
[1740928018069,1.11453607,603.78,602.52,5.70693918]
[1740928018265,2.68764255,603.78,602.52,5.70693918]
[1740928018472,1.11453607,603.78,602.52,5.70693918]
[1740928018674,1.73044649,603.85,602.52,5.70693918]
[1740928018873,3.77924034,604.54,602.52,5.70693918]
[1740928019072,5.19827813,604.53,602.52,5.70693918]
[1740928019271,1.73035328,603.98,602.52,5.70693918]
[1740928019466,3.77924034,604.51,602.52,5.70693918]
[1740928019666,4.08366946,604.5,602.52,5.70693918]
[1740928019872,3.77924034,604.49,602.52,5.70693918]
[1740928020171,4.08366946,604.48,602.52,5.70693918]
[1740928020374,4.08366946,604.47,602.52,5.70693918]
[1740928020572,4.08366946,604.46,602.52,5.70693918]
[1740928020768,3.77924034,604.45,602.52,5.70693918]
[1740928020969,3.77612959,604.44,602.52,5.70693918]
[1740928021174,4.08055871,604.43,602.52,5.70693918]
[1740928021374,4.89066566,604.42,602.52,5.70693918]
[1740928021575,3.77612959,604.41,602.52,5.70693918]
[1740928021773,4.89066566,604.4,602.52,5.70693918]
[1740928021968,3.77612959,604.39,602.52,5.70693918]
[1740928022170,1.41896519,604.4,602.52,5.70693918]
[1740928022171,4.08055871,604.38,602.52,5.70693918]
[1740928022370,4.08055871,604.37,602.52,5.70693918]
[1740928022574,4.08055871,604.36,602.52,5.70693918]
[1740928022773,4.08055871,604.35,602.52,5.70693918]
[1740928022970,4.08055871,604.34,602.52,5.70693918]
[1740928023178,4.08055871,604.33,602.52,5.70693918]
[1740928023371,3.31832834,604.32,602.52,5.70693918]
[1740928023570,1.57233732,604.31,602.52,5.70693918]
[1740928023771,2.41994973,604.31,602.52,5.70693918]
[1740928023975,1.57233732,604.31,602.52,5.70693918]
[1740928024173,2.68687339,604.33,602.52,5.70693918]
[1740928024475,1.11453607,604.33,602.52,5.70693918]
[1740928024674,1.56496272,604.33,602.52,5.70693918]
[1740928024873,1.56497006,604.33,602.52,5.70693918]
[1740928025075,1.11453607,604.33,602.52,5.70693918]
[1740928025680,1.72950765,604.34,602.52,5.70693918]
[1740928025879,1.11453607,604.33,602.52,5.70693918]
[1740928026179,2.67784212,604.33,602.52,5.70693918]
[1740928026481,1.56193814,604.32,602.52,5.70693918]
[1740928026675,2.40474438,604.33,602.52,5.70693918]
[1740928026874,0.30432675,604.32,602.52,5.70693918]
[1740928027575,1.14713299,604.32,602.52,5.70693918]
[1740928027779,0.30432675,604.31,602.52,5.70693918]
[1740928027974,4.0570363,604.32,602.52,5.70693918]
[1740928028173,3.60963423,604.31,602.52,5.70693918]
[1740928028480,4.05652187,604.3,602.52,5.70693918]
[1740928028681,2.49458373,604.29,602.52,5.70693918]
[1740928028982,1.41886282,604.28,602.52,5.70693918]
[1740928029182,0.30432675,604.27,602.52,5.70693918]
[1740928029381,0.30432675,604.26,602.52,5.70693918]
[1740928029582,0.30432675,604.25,602.52,5.70693918]
[1740928029777,0.30432675,604.24,602.52,5.70693918]
[1740928030078,0.30432675,604.23,602.52,5.70693918]
[1740928030277,0.30432675,604.22,602.52,5.70693918]
[1740928030476,0.30432675,604.21,602.52,5.70693918]
[1740928030781,0.30432675,604.2,602.52,5.70693918]
[1740928031081,2.40474438,604.25,602.52,5.70693918]
[1740928031082,0.30432675,604.19,602.52,5.70693918]
[1740928031275,0.30432675,604.23,602.52,5.70693918]
[1740928031477,0.30432675,604.22,602.52,5.70693918]
[1740928031682,0.30432675,604.24,602.52,5.70693918]
[1740928031881,0.30432675,604.23,602.52,5.70693918]
[1740928032278,0.30432675,604.22,602.52,5.70693918]
[1740928033287,3.82237078,604.22,602.52,5.70693918]
[1740928033483,1.14589657,604.21,602.52,5.70693918]
[1740928033683,0.30432675,604.2,602.52,5.70693918]
[1740928034385,0.30432675,604.2,602.53,1.72983721]
[1740928034687,0.30432675,604.2,602.55,0.33192266]
[1740928035287,1.11453607,604.22,602.55,0.33192266]
[1740928035487,1.72964376,604.19,602.55,0.33192266]
[1740928037890,1.72964376,604.19,602.55,6.20192266]
[1740928038190,0.30439258,604.18,602.55,6.20192266]
[1740928038387,1.11453607,604.94,602.55,6.20192266]
[1740928038588,1.72975839,604.18,602.55,6.20192266]
[1740928038793,4.07925935,604.93,602.55,6.20192266]
[1740928038986,0.63501735,604.92,602.55,6.20192266]
[1740928039185,2.194992,604.91,602.55,6.20192266]
[1740928039390,4.05295474,604.9,602.55,6.20192266]
[1740928039586,4.05295474,604.89,602.55,6.20192266]
[1740928039793,1.11453607,604.9,602.55,6.20192266]
[1740928039794,4.05295474,604.88,602.55,6.20192266]
[1740928039993,4.05295474,604.87,602.55,6.20192266]
[1740928040196,4.05295474,604.86,602.55,6.20192266]
[1740928040390,3.74855962,604.85,602.55,6.20192266]
[1740928040594,4.05294738,604.84,602.55,6.20192266]
[1740928040795,4.05294738,604.83,602.55,6.20192266]
[1740928041094,5.16748345,604.82,602.55,6.20192266]
[1740928041294,4.05294738,604.81,602.55,6.20192266]
[1740928041495,5.16748345,604.8,602.55,6.20192266]
[1740928041690,4.05294738,604.79,602.55,6.20192266]
[1740928041896,4.0543919,604.78,602.55,6.20192266]
[1740928042091,3.75000414,604.77,602.55,6.20192266]
[1740928042292,5.16893327,604.76,602.55,6.20192266]
[1740928042492,4.0543972,604.75,602.55,6.20192266]
[1740928042690,4.0543972,604.74,602.55,6.20192266]
[1740928042996,5.16893327,604.73,602.55,6.20192266]
[1740928043193,4.0543972,604.72,602.55,6.20192266]
[1740928043390,5.16893327,604.71,602.55,6.20192266]
[1740928043592,4.0543972,604.7,602.55,6.20192266]
[1740928043795,4.05732122,604.69,602.55,6.20192266]
[1740928043999,4.05732122,604.68,602.55,6.20192266]
[1740928044193,4.05732122,604.67,602.55,6.20192266]
[1740928044394,4.05732122,604.66,602.55,6.20192266]
[1740928044594,4.05732122,604.65,602.55,6.20192266]
[1740928044798,4.05732122,604.64,602.55,6.20192266]
[1740928045098,5.17185729,604.63,602.55,6.20192266]
[1740928045298,4.05732122,604.62,602.55,6.20192266]
[1740928045594,3.82344318,604.61,602.55,6.20192266]
[1740928045797,4.05922614,604.6,602.55,6.20192266]
[1740928045999,4.05922614,604.59,602.55,6.20192266]
[1740928046203,5.17376221,604.58,602.55,6.20192266]
[1740928046402,4.05922614,604.57,602.55,6.20192266]
[1740928046595,4.05922614,604.56,602.55,6.20192266]
[1740928046798,4.05922614,604.55,602.55,6.20192266]
[1740928046994,4.05922614,604.54,602.55,6.20192266]
[1740928047194,5.17376221,604.53,602.55,6.20192266]
[1740928047400,4.05922614,604.52,602.55,6.20192266]
[1740928047600,4.06167919,604.51,602.55,6.20192266]
[1740928047801,4.06167919,604.5,602.55,6.20192266]
[1740928047996,4.06167919,604.49,602.55,6.20192266]
[1740928048201,1.10363514,604.51,602.55,6.20192266]
[1740928048202,4.06167919,604.48,602.55,6.20192266]
[1740928048405,4.06167919,604.47,602.55,6.20192266]
[1740928048602,4.06167919,604.46,602.55,6.20192266]
[1740928048798,4.06167919,604.45,602.55,6.20192266]
[1740928048996,4.06167919,604.44,602.55,6.20192266]
[1740928049200,4.06167919,604.43,602.55,6.20192266]
[1740928049402,4.06167919,604.42,602.55,6.20192266]
[1740928049601,4.06167919,604.41,602.55,6.20192266]
[1740928049803,4.06167919,604.4,602.55,6.20192266]
[1740928049996,5.16531433,604.39,602.55,6.20192266]
[1740928050201,5.16531433,604.38,602.55,6.20192266]
[1740928050397,4.06167919,604.37,602.55,6.20192266]
[1740928050596,4.06167919,604.36,602.55,6.20192266]
[1740928050796,4.06167919,604.35,602.55,6.20192266]
[1740928050997,1.10363514,604.36,602.55,6.20192266]
[1740928050998,4.06564709,604.34,602.55,6.20192266]
[1740928051197,4.06564709,604.33,602.55,6.20192266]
[1740928051404,4.06564709,604.32,602.55,6.20192266]
[1740928051702,4.06564709,604.31,602.55,6.20192266]
[1740928051902,4.06564709,604.3,602.55,6.20192266]
[1740928052097,4.06564709,604.29,602.55,6.20192266]
[1740928052302,5.16928223,604.28,602.55,6.20192266]
[1740928052503,4.06564709,604.27,602.55,6.20192266]
[1740928052705,2.71210937,604.26,602.55,6.20192266]
[1740928052905,2.71210937,604.25,602.55,6.20192266]
[1740928053203,2.71210937,604.24,602.55,6.20192266]
[1740928053404,2.71210937,604.23,602.55,6.20192266]
[1740928053705,2.71210937,604.22,602.55,6.20192266]
[1740928053899,2.71210937,604.21,602.55,6.20192266]
[1740928054099,2.71210937,604.2,602.55,6.20192266]
[1740928054302,2.71220247,604.19,602.55,6.20192266]
[1740928054600,2.71220247,604.18,602.55,6.20192266]
[1740928054803,2.71220247,604.17,602.55,6.20192266]
[1740928055004,2.71220247,604.16,602.55,6.20192266]
[1740928055204,2.71220247,604.15,602.55,6.20192266]
[1740928055403,2.71371738,604.14,602.55,6.20192266]
[1740928055603,2.71371738,604.13,602.55,6.20192266]
[1740928055807,2.71371738,604.12,602.55,6.20192266]
[1740928056006,2.71371738,604.11,602.55,6.20192266]
[1740928056199,2.71371738,604.1,602.55,6.20192266]
[1740928056401,2.71371738,604.09,602.55,6.20192266]
[1740928056602,2.71371738,604.08,602.55,6.20192266]
[1740928056803,2.71371738,604.07,602.55,6.20192266]
[1740928057008,1.10363514,604.09,602.55,6.20192266]
[1740928057009,2.71371738,604.06,602.55,6.20192266]
[1740928057211,2.71371738,604.05,602.55,6.20192266]
[1740928057411,2.71371738,604.04,602.55,6.20192266]
[1740928057606,2.40923122,604.03,602.55,6.20192266]
[1740928057809,1.56175523,604.02,602.55,6.20192266]
[1740928058107,1.10363514,604.02,602.55,6.20192266]
[1740928058315,3.51286636,604.02,602.55,6.20192266]
[1740928058511,3.76519281,604.01,602.55,6.20192266]
[1740928058707,0.84747599,604.0,602.55,6.20192266]
[1740928058905,3.76519281,604.0,602.55,6.20192266]
[1740928059109,0.84747599,603.99,602.55,6.20192266]
[1740928059307,1.10363514,603.99,602.55,6.20192266]
[1740928059505,3.51286636,603.99,602.55,6.20192266]
[1740928059712,1.10363514,603.98,602.55,6.20192266]
[1740928059906,3.51286636,603.98,602.55,6.20192266]
[1740928060113,2.20343758,603.97,602.55,6.20192266]
[1740928060411,2.40923122,603.97,602.55,6.20192266]
[1740928060608,1.10363514,603.96,602.55,6.20192266]
[1740928061010,1.10363514,603.95,602.55,6.20192266]
[1740928062217,1.10363514,603.94,602.55,6.20192266]
[1740928062618,1.10363514,603.93,602.55,6.20192266]
[1740928063215,1.95227102,603.93,602.55,6.20192266]
[1740928063411,1.10363514,603.93,602.55,6.20192266]
[1740928063615,1.10363514,603.92,602.55,6.20192266]
[1740928064114,1.10363514,603.92,602.57,1.2390476]
[1740928064316,4.88485168,603.93,602.59,0.33190062]
[1740928064617,3.78121654,603.92,602.59,0.33190062]
[1740928064815,3.52480697,603.92,602.59,0.33190062]
[1740928065015,2.42117183,603.91,602.59,0.33190062]
[1740928065216,0.84863588,603.91,602.59,0.33190062]
[1740928065411,1.47482863,604.42,602.59,0.33190062]
[1740928065412,1.10363514,603.9,602.59,0.33190062]
[1740928066111,1.10363514,603.89,602.59,0.33190062]
[1740928066620,1.10363514,603.88,602.59,1.57094822]
[1740928067218,1.10363514,603.87,602.59,1.57094822]
[1740928067620,1.10363514,603.87,602.6,4.126]
[1740928067821,1.10363514,603.86,602.62,0.3318841]
[1740928068220,1.10363514,603.85,602.62,0.3318841]
[1740928068521,1.10363514,603.85,602.62,1.5709317]
[1740928069022,1.10363514,603.84,602.62,1.5709317]
[1740928069717,1.10363514,603.83,602.62,1.5709317]
[1740928070114,1.10363514,603.82,602.63,2.719]
[1740928070315,1.10363514,603.82,602.65,0.33186758]
[1740928070721,1.10363514,603.81,602.65,0.33186758]
[1740928070919,3.52480697,603.82,602.65,0.33186758]
[1740928071117,2.42117183,603.81,602.65,0.33186758]
[1740928071322,0.84863588,603.81,602.65,0.33186758]
[1740928071622,1.10363514,603.81,602.65,0.33186758]
[1740928072219,4.88874639,603.94,602.65,0.33186758]
[1740928072523,3.78511125,603.93,602.65,0.33186758]
[1740928072723,4.88874639,603.92,602.65,0.33186758]
[1740928073021,3.79916094,603.91,602.65,0.33186758]
[1740928073223,2.43409537,603.9,602.65,0.33186758]
[1740928073417,2.43409537,603.89,602.65,0.33186758]
[1740928073622,2.43409537,603.88,602.67,1.2390476]
[1740928073821,1.58092939,603.87,602.69,0.33184555]
[1740928074018,2.68456453,603.86,602.69,0.33184555]
[1740928074222,2.43409537,603.85,602.69,0.33184555]
[1740928074423,1.58092939,603.84,602.69,0.33184555]
[1740928074623,1.58092939,603.83,602.69,0.33184555]
[1740928074829,1.58092939,603.82,602.69,0.33184555]
[1740928075025,1.58092939,603.81,602.69,0.33184555]
[1740928075325,1.58092939,603.8,602.69,0.33184555]
[1740928075526,1.58092939,603.79,602.69,0.33184555]
[1740928075725,2.68456453,603.79,602.69,0.33184555]
[1740928076124,2.68456453,603.78,602.69,0.33184555]
[1740928076325,1.58092939,603.77,602.69,0.33184555]
[1740928076518,2.68456453,603.77,602.69,0.33184555]
[1740928076820,1.58092939,603.76,602.69,0.33184555]
[1740928077123,1.10363514,603.76,602.69,0.33184555]
[1740928077522,2.43482257,603.96,602.69,0.33184555]
[1740928077523,1.10363514,603.75,602.69,0.33184555]
[1740928077825,1.10363514,603.74,602.69,0.33184555]
[1740928078324,1.10363514,603.73,602.69,0.33184555]
[1740928078720,1.10363514,603.72,602.69,0.33184555]
[1740928079523,1.10363514,603.71,602.69,0.33184555]
[1740928080124,2.43482257,603.83,602.69,0.33184555]
[1740928080325,1.58092939,603.82,602.69,0.33184555]
[1740928080526,3.53845771,603.81,602.69,0.33184555]
[1740928080725,3.80113721,603.8,602.69,0.33184555]
[1740928080923,1.58092939,603.79,602.69,0.33184555]
[1740928081124,2.68456453,603.78,602.69,0.33184555]
[1740928081323,1.58092939,603.77,602.69,0.33184555]
[1740928081531,2.68456453,603.76,602.69,0.33184555]
[1740928081827,2.43482257,603.75,602.69,0.33184555]
[1740928082029,1.58092939,603.74,602.69,0.33184555]
[1740928082224,2.68456453,603.73,602.69,0.33184555]
[1740928082426,2.43482257,603.72,602.69,0.33184555]
[1740928082626,1.58092939,603.71,602.69,0.33184555]
[1740928082824,1.10363514,603.71,602.69,0.33184555]
[1740928083329,1.10363514,603.7,602.69,0.33184555]
[1740928084127,1.10363514,603.69,602.69,0.33184555]
[1740928084326,1.58092939,603.68,602.69,0.33184555]
[1740928084534,1.58092939,603.67,602.69,0.33184555]
[1740928084733,1.58092939,603.67,602.79,1.2390476]
[1740928084934,1.10363514,603.66,602.81,0.33177949]
[1740928085732,2.43529165,603.78,602.81,0.33177949]
[1740928085935,2.43529165,603.77,602.81,0.33177949]
[1740928086135,1.58092939,603.76,602.81,0.33177949]
[1740928086435,2.43529165,603.75,602.81,1.57082709]
[1740928086629,2.43529165,603.74,602.81,1.57082709]
[1740928086935,2.69800742,603.73,602.81,1.57082709]
[1740928087134,2.43529165,603.72,602.81,1.57082709]
[1740928087336,1.58092939,603.71,602.81,1.57082709]
[1740928087635,1.58092939,603.7,602.81,1.57082709]
[1740928087829,2.69800742,603.69,602.81,1.57082709]
[1740928088034,1.58092939,603.68,602.81,1.57082709]
[1740928088233,1.58092939,603.67,602.81,1.57082709]
[1740928088436,1.58092939,603.66,602.81,1.57082709]
[1740928088636,1.11707803,603.66,602.81,1.57082709]
[1740928088931,1.11707803,603.65,602.81,1.57082709]
[1740928089136,1.11707803,603.65,602.87,1.2390476]
[1740928089336,1.11707803,603.65,602.88,0.33174097]
[1740928089836,1.11707803,603.64,602.88,0.33174097]
[1740928090436,1.73020273,603.96,602.88,0.33174097]
[1740928090437,3.80935798,603.79,602.88,0.33174097]
[1740928090637,3.80934648,603.78,602.88,0.33174097]
[1740928090832,3.80934648,603.77,602.88,0.33174097]
[1740928091037,3.80934648,603.76,602.88,0.33174097]
[1740928091239,4.92772238,603.75,602.88,0.33174097]
[1740928091434,2.44075046,603.74,602.88,0.33174097]
[1740928091631,1.11806212,603.75,602.88,0.33174097]
[1740928091632,3.55881258,603.73,602.88,0.33174097]
[1740928091832,2.44075046,603.72,602.89,1.948]
[1740928092138,1.58521107,603.71,602.89,1.948]
[1740928092343,1.585799,603.7,602.91,0.33172446]
[1740928092541,1.11806212,603.71,602.91,0.33172446]
[1740928093343,1.11806212,603.7,602.91,3.05472446]
[1740928093845,2.70391864,603.69,602.91,3.05472446]
[1740928094037,2.70391864,603.68,602.91,3.05472446]
[1740928094242,1.58585652,603.67,602.91,3.05472446]
[1740928094545,1.11806212,603.68,602.91,3.05472446]
[1740928094738,1.11806212,603.66,602.91,3.05472446]
[1740928095341,0.85594493,603.81,602.91,3.05472446]
[1740928095538,2.44236644,603.8,602.91,3.05472446]
[1740928095739,2.44236644,603.79,602.91,4.68172446]
[1740928095938,2.4423328,603.78,602.91,4.68172446]
[1740928096143,2.4423328,603.77,602.91,4.68172446]
[1740928096343,2.4423328,603.76,602.91,4.68172446]
[1740928096544,2.4423328,603.75,602.91,4.68172446]
[1740928096745,2.4423328,603.74,602.91,4.68172446]
[1740928096946,2.4423328,603.73,602.91,4.68172446]
[1740928097147,2.4423328,603.72,602.91,4.68172446]
[1740928097447,3.56124266,603.71,602.91,4.68172446]
[1740928097640,2.4423328,603.7,602.91,4.68172446]
[1740928097846,2.4423328,603.69,602.91,4.68172446]
[1740928098043,2.70562754,603.68,602.91,4.68172446]
[1740928098244,2.44296708,603.67,602.91,4.68172446]
[1740928098441,1.11890986,603.68,602.91,4.68172446]
[1740928098442,2.44296708,603.66,602.91,4.68172446]
[1740928098648,2.70562754,603.65,602.91,4.68172446]
[1740928098847,1.58671768,603.64,602.91,4.68172446]
[1740928099042,1.58671768,603.63,602.91,4.68172446]
[1740928099248,2.70562754,603.62,602.91,4.68172446]
[1740928099448,1.58639644,603.61,602.91,4.68172446]
[1740928099652,1.58642852,603.6,602.91,4.68172446]
[1740928099953,1.11890986,603.59,602.91,4.68172446]
[1740928100551,2.22582664,603.83,602.91,4.68172446]
[1740928100750,3.81275861,603.82,602.91,4.68172446]
[1740928100947,3.81280989,603.81,602.91,4.68172446]
[1740928101152,3.81280989,603.8,602.91,4.68172446]
[1740928101349,3.8146884,603.79,602.91,4.68172446]
[1740928101553,3.8146884,603.78,602.91,4.68172446]
[1740928101749,1.11928186,603.8,602.91,4.68172446]
[1740928101750,3.8146884,603.77,602.91,4.68172446]
[1740928102052,1.11928186,603.8,602.91,4.68172446]
[1740928102053,2.44379292,603.76,602.91,4.68172446]
[1740928102246,2.44379292,603.75,602.91,4.68172446]
[1740928102450,3.56307478,603.74,602.91,4.68172446]
[1740928102748,3.56307478,603.73,602.91,4.68172446]
[1740928102947,2.44379292,603.72,602.91,4.68172446]
[1740928103152,2.44379292,603.71,602.91,4.68172446]
[1740928103452,1.58698325,603.7,602.91,4.68172446]
[1740928103651,1.58887788,603.69,602.91,4.68172446]
[1740928103952,2.70815974,603.68,602.91,4.68172446]
[1740928104155,1.58887788,603.67,602.91,4.68172446]
[1740928104348,1.58887788,603.66,602.91,4.68172446]
[1740928104653,2.70815974,603.65,602.91,5.92077206]
[1740928104847,1.58887788,603.64,602.91,5.92077206]
[1740928105047,1.11928186,603.65,602.91,5.92077206]
[1740928105048,1.58887788,603.63,602.91,5.92077206]
[1740928105354,1.7300737,603.98,602.91,5.92077206]
[1740928105355,2.7086044,603.62,602.91,5.92077206]
[1740928105652,1.11928186,603.62,602.91,5.92077206]
[1740928106047,1.11928186,603.61,602.91,5.92077206]
[1740928106251,1.58955557,603.6,602.91,5.92077206]
[1740928106453,1.58951928,603.59,602.91,5.92077206]
[1740928106648,1.11928186,603.6,602.91,5.92077206]
[1740928107054,1.11928186,603.59,602.91,4.68172446]
[1740928107454,1.11928186,603.58,602.91,4.68172446]
[1740928107952,1.11928186,603.57,602.91,4.68172446]
[1740928108455,1.37249971,603.76,602.91,4.68172446]
[1740928108652,3.81994951,603.75,602.91,4.68172446]
[1740928108852,3.81994951,603.74,602.91,4.68172446]
[1740928109048,3.81994951,603.73,602.91,4.68172446]
[1740928109248,3.81994951,603.72,602.91,4.68172446]
[1740928109449,2.23035185,603.71,602.91,4.68172446]
[1740928109755,3.81994335,603.7,602.91,4.68172446]
[1740928109954,3.81994335,603.69,602.91,4.68172446]
[1740928110150,3.81994335,603.68,602.91,4.68172446]
[1740928110355,1.1211725,603.72,602.91,4.68172446]
[1740928110356,3.81994335,603.67,602.91,4.68172446]
[1740928110650,3.5685777,603.66,602.91,4.68172446]
[1740928110855,2.4474052,603.65,602.91,4.68172446]
[1740928111055,2.4474052,603.64,602.91,4.68172446]
[1740928111255,2.4474052,603.63,602.91,4.68172446]
[1740928111456,3.5685777,603.62,602.91,4.68172446]
[1740928111657,1.58956886,603.61,602.91,4.68172446]
[1740928111851,2.44739964,603.6,602.91,4.68172446]
[1740928112056,2.71074136,603.59,602.91,4.68172446]
[1740928112358,1.58956886,603.58,602.91,4.68172446]
[1740928112552,1.58956886,603.57,602.91,4.68172446]
[1740928112753,1.1211725,603.58,602.91,4.68172446]
[1740928112951,1.58950059,603.57,602.91,4.68172446]
[1740928113256,1.58971251,603.56,602.91,4.68172446]
[1740928113552,1.58971251,603.55,602.91,4.68172446]
[1740928113752,1.1211725,603.55,602.91,4.68172446]
[1740928114157,1.1211725,603.54,602.91,4.68172446]
[1740928114552,1.1211725,603.53,602.91,4.68172446]
[1740928115157,1.1211725,603.52,602.91,4.68172446]
[1740928115957,2.23049378,603.72,602.91,4.68172446]
[1740928116152,3.82011545,603.71,602.91,4.68172446]
[1740928116358,3.82011545,603.7,602.91,4.68172446]
[1740928116658,3.82011545,603.69,602.91,4.68172446]
[1740928116959,1.12119929,603.7,602.91,4.68172446]
[1740928116960,2.44750389,603.68,602.91,4.68172446]
[1740928117259,2.44750389,603.67,602.91,4.68172446]
[1740928117458,2.44675928,603.66,602.91,4.68172446]
[1740928117659,2.44675928,603.65,602.91,4.68172446]
[1740928117858,2.44675928,603.64,602.91,4.68172446]
[1740928118159,2.44675928,603.63,602.91,4.68172446]
[1740928118358,2.44675928,603.62,602.91,4.35]
[1740928118555,2.44675928,603.61,602.91,4.35]
[1740928118756,2.44675928,603.6,602.91,4.35]
[1740928118956,1.58914581,603.59,602.91,4.35]
[1740928119158,1.58914581,603.58,602.91,4.35]
[1740928119358,1.58914581,603.57,602.91,4.35]
[1740928119661,1.58906167,603.56,602.91,4.35]
[1740928119860,1.12119929,603.58,602.91,4.35]
[1740928120055,1.58914002,603.57,602.91,4.35]
[1740928120254,1.58914002,603.56,602.91,4.35]
[1740928120460,1.12119929,603.57,602.91,4.35]
[1740928120664,2.71025988,603.56,602.91,4.35]
[1740928120856,1.58891822,603.55,602.91,4.35]
[1740928121058,1.37212124,603.81,602.91,4.35]
[1740928121059,1.12119929,603.54,602.91,4.35]
[1740928121763,2.70996768,603.53,602.91,4.35]
[1740928121963,1.58876839,603.52,602.91,4.35]
[1740928122264,1.12119929,603.53,602.91,4.35]
[1740928122662,1.58857906,603.52,602.91,4.35]
[1740928122862,1.12119929,603.52,602.91,6.429]
[1740928123263,2.70969844,603.51,602.91,6.429]
[1740928123462,1.12119929,603.51,602.91,6.429]
[1740928123868,1.12119929,603.5,602.91,6.429]
[1740928124367,1.12119929,603.49,602.91,6.429]
[1740928124761,2.22918506,603.63,602.91,6.429]
[1740928124961,2.44553447,603.62,602.91,6.429]
[1740928125163,2.44553447,603.61,602.91,6.429]
[1740928125466,3.56596926,603.6,602.91,6.429]
[1740928125668,2.44564322,603.59,602.91,6.429]